bitfinex/quotes_ETHUSD_20250706
["timestamp","ask_amount","ask_price","bid_price","bid_amount"]
[1751809592367,8.2652416,2549.7,2549.6,4.7478057]
[1751809592643,8.2652416,2549.7,2549.6,5.59519702]
[1751809593848,0.0482416,2549.7,2549.6,5.59519702]
[1751809594152,8.2612416,2549.7,2549.6,5.63441885]
[1751809594352,8.2612416,2549.7,2549.6,5.59519702]
[1751809595124,0.0482416,2549.7,2549.6,5.59519702]
[1751809595329,8.2582416,2549.7,2549.6,5.59519702]
[1751809596325,0.0482416,2549.7,2549.6,5.59519702]
[1751809596645,8.2572416,2549.7,2549.6,5.59519702]
[1751809597353,8.2572416,2549.7,2549.5,4.11820105]
[1751809597517,8.2572416,2549.7,2549.5,0.196]
[1751809597722,8.2572416,2549.7,2549.4,4.11847219]
[1751809598151,8.2572416,2549.7,2549.5,3.92232129]
[1751809598346,8.2572416,2549.7,2549.6,3.92218387]
[1751809598546,8.2572416,2549.7,2549.4,4.11842656]
[1751809598849,8.2572416,2549.7,2549.5,3.92231973]
[1751809599044,8.2572416,2549.7,2549.6,3.92218387]
[1751809599247,8.2572416,2549.7,2549.6,0.196]
[1751809599664,8.2572416,2549.7,2549.4,3.92243475]
[1751809599954,8.2572416,2549.7,2549.5,3.9223196]
[1751809600121,8.2572416,2549.7,2549.4,4.1184459]
[1751809600319,9.49473877,2549.7,2549.4,0.196]
[1751809600635,9.49473877,2549.7,2548.3,2.29059935]
[1751809600636,4.66841474,2549.5,2549.0,4.11910694]
[1751809600835,0.746,2549.5,2549.1,3.92291315]
[1751809601150,0.746,2549.5,2549.1,3.92293745]
[1751809601550,0.746,2549.5,2549.0,0.196]
[1751809601752,0.55,2549.4,2549.1,3.92293223]
[1751809601952,8.196,2549.3,2549.0,4.11903383]
[1751809602157,0.55,2549.2,2549.0,0.196]
[1751809602357,5.40759007,2549.2,2548.8,0.196]
[1751809602653,4.62136427,2549.1,2548.8,0.196]
[1751809602863,0.6984,2549.1,2548.8,0.196]
[1751809603032,0.55,2549.0,2548.8,0.196]
[1751809603233,0.55,2549.0,2548.5,3.92375036]
[1751809603234,0.55,2548.8,2548.5,3.92375036]
[1751809603442,8.194,2548.7,2548.4,4.11997768]
[1751809603632,8.194,2548.7,2548.6,3.92372282]
[1751809604731,8.194,2548.7,2548.4,4.60776503]
[1751809604933,8.194,2548.7,2548.5,3.92385089]
[1751809605336,8.194,2548.7,2548.4,4.60773312]
[1751809605556,8.194,2548.7,2548.5,3.92387593]
[1751809605869,8.194,2548.7,2548.4,0.196]
[1751809606029,2.79778352,2549.2,2548.4,0.196]
[1751809606030,8.188,2548.6,2548.5,3.92387679]
[1751809606425,8.188,2548.6,2548.5,4.11987679]
[1751809608569,8.188,2548.6,2548.3,0.7578]
[1751809608774,8.188,2548.6,2548.5,3.92387679]
[1751809608938,8.188,2548.6,2548.4,0.196]
[1751809609337,8.188,2548.6,2548.4,4.12001872]
[1751809609757,8.188,2548.6,2548.5,3.92387679]
[1751809611557,8.183,2548.6,2548.5,3.92387679]
[1751809613540,8.183,2548.6,2548.4,0.196]
[1751809613937,8.183,2548.6,2548.3,3.92407816]
[1751809614148,0.55,2548.5,2548.2,4.12026623]
[1751809614944,0.55,2548.5,2548.2,0.196]
[1751809615146,0.55,2548.5,2548.0,0.0017217]
[1751809615459,0.55,2548.2,2548.0,0.0017217]
[1751809615664,8.726,2548.1,2548.0,0.0017217]
[1751809616354,0.196,2548.2,2548.0,0.0017217]
[1751809616552,0.196,2548.5,2548.0,0.1977217]
[1751809616870,8.724,2548.4,2548.1,3.92449275]
[1751809617043,8.724,2548.4,2548.3,3.92418475]
[1751809617240,0.6984,2548.7,2548.4,3.92403076]
[1751809617440,8.174,2548.6,2548.3,4.12010318]
[1751809617668,8.174,2548.6,2548.3,0.196]
[1751809617669,0.55,2548.4,2548.3,0.196]
[1751809618251,8.724,2548.5,2548.4,3.92403076]
[1751809618462,0.55,2548.5,2548.4,3.92403076]
[1751809618657,8.724,2548.5,2548.4,4.71913076]
[1751809618860,0.6984,2548.9,2548.6,3.92372282]
[1751809619060,8.174,2548.8,2548.7,3.92343578]
[1751809619264,8.174,2548.8,2548.6,3.92370081]
[1751809619265,8.174,2548.8,2548.6,3.92366458]
[1751809619658,0.55,2548.7,2548.6,3.92366458]
[1751809620057,0.55,2548.7,2548.5,3.92379379]
[1751809620260,0.55,2548.7,2548.4,0.196]
[1751809620571,10.0,2549.2,2548.0,0.0017217]
[1751809620572,0.6984,2549.2,2548.6,3.92358528]
[1751809620867,8.172,2549.1,2548.8,0.196]
[1751809621048,8.174,2549.0,2548.8,4.11940869]
[1751809621245,0.746,2548.9,2548.4,0.196]
[1751809621456,0.746,2548.9,2548.6,3.92370252]
[1751809621660,0.746,2548.9,2548.6,3.92359684]
[1751809621968,0.746,2548.9,2548.5,3.92385778]
[1751809622165,0.746,2548.9,2548.6,3.92366384]
[1751809622340,5.36530342,2548.9,2548.4,3.92397405]
[1751809622541,0.746,2548.7,2548.4,3.92397405]
[1751809622747,0.55,2548.5,2548.3,3.92411362]
[1751809622951,0.55,2548.5,2548.4,3.92403076]
[1751809623861,0.55,2548.5,2548.2,0.196]
[1751809625154,0.55,2548.5,2548.3,3.92416761]
[1751809625349,0.55,2548.5,2548.4,3.92403076]
[1751809625552,0.6984,2549.0,2548.4,0.80443191]
[1751809625873,8.171,2548.9,2548.5,3.92387679]
[1751809626075,8.171,2548.9,2548.6,4.11963618]
[1751809626378,0.8944,2549.0,2548.8,3.92331443]
[1751809626581,8.171,2548.9,2548.8,3.92331443]
[1751809626784,0.55,2548.8,2548.4,3.92397116]
[1751809626958,0.55,2548.8,2548.6,3.9236953]
[1751809627268,0.55,2548.8,2548.5,3.92383659]
[1751809627777,3.92388341,2548.5,2548.1,0.196]
[1751809628071,0.55,2548.1,2548.0,3.92636663]
[1751809628273,0.55,2548.1,2548.0,0.0017217]
[1751809628441,4.47449275,2548.1,2548.0,0.0017217]
[1751809628641,5.0969077,2548.1,2548.0,0.0017217]
[1751809628970,15.7953077,2548.1,2548.0,0.0017217]
[1751809629764,16.08330924,2548.1,2548.0,0.0017217]
[1751809629971,16.45017149,2548.1,2548.0,0.0017217]
[1751809630148,24.62317149,2548.1,2548.0,0.0017217]
[1751809630358,16.45017149,2548.1,2548.0,0.0017217]
[1751809630564,16.16216995,2548.1,2548.0,0.0017217]
[1751809630894,26.37516995,2548.1,2548.0,0.0017217]
[1751809631759,26.57991413,2548.1,2548.0,1e-08]
[1751809632256,26.58091413,2548.1,2548.0,1e-08]
[1751809632576,26.86849492,2548.1,2548.0,1e-08]
[1751809633352,26.66375074,2548.1,2548.0,1e-08]
[1751809634168,26.66375074,2548.1,2548.0,2.00000001]
[1751809634760,16.44975074,2548.1,2548.0,2.00000001]
[1751809634961,21.27826225,2548.1,2548.0,2.00000001]
[1751809635468,20.9114,2548.1,2548.0,2.00000001]
[1751809636173,25.38589275,2548.1,2548.0,2.00000001]
[1751809636672,24.83589275,2548.1,2548.0,2.00000001]
[1751809636848,21.4614,2548.1,2548.0,2.00000001]
[1751809637049,25.38589275,2548.1,2548.0,2.00000001]
[1751809637872,25.75183663,2548.1,2548.0,2.00000001]
[1751809639345,25.75183663,2548.1,2548.0,2.00100001]
[1751809640048,15.53883663,2548.1,2548.0,2.00100001]
[1751809640377,24.83689275,2548.1,2548.0,2.00100001]
[1751809640749,25.38689275,2548.1,2548.0,2.00100001]
[1751809641292,25.75271675,2548.1,2548.0,2.00100001]
[1751809641867,15.17289275,2548.1,2548.0,2.00100001]
[1751809642097,25.38689275,2548.1,2548.0,2.00100001]
[1751809642294,15.17289275,2548.1,2548.0,2.00100001]
[1751809642463,25.38689275,2548.1,2548.0,2.00100001]
[1751809643074,21.4624,2548.1,2548.0,2.00100001]
[1751809643280,0.6984,2548.4,2548.0,2.00100001]
[1751809643576,10.0,2548.2,2548.0,2.00100001]
[1751809643747,8.174,2548.1,2548.0,2.00100001]
[1751809644076,8.174,2548.1,2548.0,2.001]
[1751809644448,8.724,2548.1,2548.0,2.001]
[1751809644648,8.92,2548.1,2548.0,2.001]
[1751809644953,2.04,2548.4,2548.1,0.8254]
[1751809645157,0.196,2548.5,2548.1,0.8254]
[1751809645446,8.174,2548.4,2548.3,4.12018475]
[1751809646483,2.04,2548.8,2548.6,3.92372282]
[1751809646686,2.04,2548.8,2548.7,3.92356887]
[1751809646847,10.214,2548.8,2548.7,3.92356887]
[1751809647048,10.214,2548.8,2548.5,3.92386954]
[1751809647049,20.214,2548.8,2548.5,3.92386954]
[1751809647679,20.214,2548.8,2548.6,3.92363579]
[1751809647680,0.55,2548.7,2548.6,3.92363579]
[1751809647883,0.55,2548.7,2548.5,3.9238107]
[1751809648084,8.724,2548.6,2548.5,3.9238107]
[1751809648977,8.723,2548.6,2548.5,3.9238107]
[1751809650399,2.04,2548.8,2548.7,3.92356887]
[1751809650684,8.723,2548.8,2548.7,3.92356887]
[1751809650868,0.55,2548.8,2548.7,3.92356887]
[1751809651191,0.55,2548.7,2548.6,3.92369308]
[1751809651384,0.55,2548.7,2548.5,4.80475313]
[1751809651385,0.55,2548.7,2548.5,3.92377882]
[1751809651689,8.722,2548.6,2548.5,3.92377882]
[1751809652067,8.172,2548.6,2548.5,4.80470867]
[1751809652269,0.55,2548.9,2548.8,3.92341494]
[1751809652667,0.55,2548.8,2548.7,3.92350899]
[1751809652980,8.172,2548.8,2548.7,4.11956887]
[1751809653364,12.234,2549.2,2548.8,3.92330594]
[1751809653559,8.172,2549.1,2548.9,3.9232396]
[1751809653895,8.722,2549.0,2548.9,4.6887396]
[1751809654075,0.55,2549.1,2549.0,3.9231071]
[1751809654266,8.721,2549.1,2549.0,3.9231071]
[1751809655184,8.721,2549.1,2548.9,0.7655]
[1751809655389,0.55,2549.1,2549.0,3.9231071]
[1751809655688,8.721,2549.1,2548.9,0.7655]
[1751809656008,0.196,2548.9,2548.3,1.0248]
[1751809656159,0.55,2548.7,2548.4,3.92403076]
[1751809656487,0.55,2548.7,2548.4,3.92392332]
[1751809656789,0.55,2548.5,2548.4,3.92392332]
[1751809656986,8.721,2548.5,2548.4,3.92392332]
[1751809657189,0.196,2549.0,2548.5,0.8132]
[1751809657407,0.196,2549.0,2548.8,3.92341494]
[1751809657408,8.72,2548.9,2548.8,3.92341494]
[1751809657596,0.55,2548.8,2548.7,3.92350254]
[1751809657795,0.6984,2549.2,2549.1,3.92295319]
[1751809657796,2.038,2549.2,2549.1,3.92295319]
[1751809658200,10.208,2549.2,2549.1,4.11895319]
[1751809658710,14.28954785,2549.6,2549.1,4.11895319]
[1751809658906,0.746,2549.3,2548.9,4.11911036]
[1751809659581,0.746,2549.3,2549.0,3.92307946]
[1751809659775,0.746,2549.3,2548.9,4.11918276]
[1751809660200,0.746,2549.3,2549.0,3.92308614]
[1751809660626,0.746,2549.3,2548.9,0.196]
[1751809660819,0.55,2549.1,2548.7,3.92355807]
[1751809661057,0.55,2548.9,2548.5,1.0092]
[1751809661208,0.55,2548.9,2548.8,3.92341494]
[1751809661521,0.55,2549.1,2548.9,3.92323741]
[1751809661682,0.55,2549.1,2549.0,3.9231071]
[1751809661886,8.719,2549.1,2549.0,4.7363071]
[1751809662109,2.04,2549.5,2549.0,1.0092]
[1751809662282,8.169,2549.4,2549.3,3.92257014]
[1751809662481,8.169,2549.4,2549.1,4.11886258]
[1751809662819,0.55,2549.3,2549.1,4.11894289]
[1751809663192,0.55,2549.3,2549.2,3.9227993]
[1751809663385,0.55,2549.3,2549.1,4.11888217]
[1751809664125,0.55,2549.3,2549.0,4.73625526]
[1751809664420,0.55,2549.3,2549.1,3.92294148]
[1751809664582,1.6455,2549.3,2548.9,0.196]
[1751809664796,0.55,2549.3,2549.0,3.92298544]
[1751809664990,0.55,2549.3,2548.9,0.196]
[1751809665298,0.55,2549.3,2549.2,3.9227993]
[1751809666214,8.169,2549.3,2549.1,4.1188002]
[1751809667333,8.169,2549.3,2549.1,0.196]
[1751809667613,0.55,2549.2,2548.9,3.92318818]
[1751809667921,0.55,2549.1,2549.0,3.92301491]
[1751809669390,8.718,2549.1,2549.0,3.92301491]
[1751809669609,8.718,2549.1,2548.9,4.11924903]
[1751809669610,8.718,2549.1,2548.9,4.1192132]
[1751809669995,8.168,2549.1,2549.0,3.9231071]
[1751809670195,8.168,2549.1,2548.9,4.11918699]
[1751809670389,8.168,2549.1,2549.0,3.9231071]
[1751809671412,8.168,2549.1,2548.9,0.196]
[1751809671712,8.168,2549.1,2548.9,4.11917395]
[1751809672114,8.168,2549.1,2549.0,3.9231071]
[1751809673985,0.55,2549.3,2549.2,3.9227993]
[1751809674190,8.717,2549.3,2549.2,3.9227993]
[1751809674389,8.717,2549.3,2549.1,4.11887612]
[1751809675493,8.717,2549.3,2549.1,4.11892007]
[1751809675896,0.55,2549.2,2548.7,3.92344778]
[1751809676095,0.55,2549.0,2548.7,3.92344778]
[1751809676308,0.55,2548.8,2548.7,3.92344778]
[1751809676495,0.55,2548.8,2548.6,4.90778342]
[1751809676998,0.55,2548.8,2548.7,3.92356887]
[1751809677195,0.55,2548.8,2548.6,0.196]
[1751809677416,0.55,2548.8,2548.0,0.001]
[1751809677417,1.2484,2548.7,2548.2,0.7533]
[1751809677618,0.55,2548.5,2548.2,4.67756796]
[1751809677922,0.196,2548.6,2548.2,0.7533]
[1751809677923,0.55,2548.3,2548.2,0.7533]
[1751809678420,0.55,2548.3,2548.2,4.67763874]
[1751809679024,8.167,2548.3,2548.2,5.55750623]
[1751809679315,0.196,2548.6,2548.2,1.63322586]
[1751809679515,8.166,2548.5,2548.4,3.92403076]
[1751809679688,8.166,2548.5,2548.4,4.12003076]
[1751809680508,8.166,2548.5,2548.4,0.196]
[1751809680908,8.166,2548.5,2548.1,3.92440878]
[1751809680909,0.55,2548.4,2548.1,3.92440878]
[1751809681112,8.166,2548.5,2548.3,3.92418475]
[1751809681314,8.166,2548.5,2548.2,4.12026175]
[1751809681910,8.166,2548.5,2548.3,3.9241594]
[1751809682327,0.55,2548.5,2548.3,3.9241594]
[1751809682526,0.196,2548.6,2548.4,3.92394899]
[1751809682728,0.55,2548.9,2548.4,4.53194389]
[1751809682902,8.716,2548.8,2548.4,0.6079949]
[1751809683097,8.166,2548.7,2548.6,3.92363081]
[1751809683336,8.166,2548.7,2548.5,4.70824522]
[1751809683500,8.166,2548.7,2548.6,3.92372282]
[1751809683895,8.166,2548.7,2548.5,4.70819911]
[1751809684097,8.166,2548.7,2548.6,3.92372282]
[1751809684331,8.166,2548.7,2548.6,4.11972282]
[1751809685029,8.166,2548.7,2548.6,0.196]
[1751809686105,8.716,2548.7,2548.6,0.196]
[1751809686306,9.4144,2548.7,2548.1,0.7844]
[1751809686506,8.716,2548.7,2548.5,0.196]
[1751809686713,0.55,2548.6,2548.1,0.7844]
[1751809686912,0.55,2548.6,2548.3,3.92414968]
[1751809686913,0.746,2548.6,2548.3,3.92414968]
[1751809687130,0.55,2548.6,2548.3,3.92414968]
[1751809687307,0.55,2548.6,2548.4,4.11995066]
[1751809687508,0.55,2548.6,2548.4,0.196]
[1751809687712,0.55,2548.6,2548.5,3.92387679]
[1751809687939,0.55,2548.6,2548.4,0.196]
[1751809688821,0.55,2548.6,2548.4,4.12002047]
[1751809689229,0.55,2548.6,2548.5,3.92387679]
[1751809689845,0.002,2548.7,2548.5,3.92387679]
[1751809690145,0.002,2548.7,2548.6,4.90262282]
[1751809690448,8.168,2548.7,2548.6,4.90262282]
[1751809690742,0.002,2548.7,2548.6,4.90262282]
[1751809690918,8.168,2548.7,2548.6,4.90262282]
[1751809693935,8.168,2548.7,2548.6,0.196]
[1751809694243,0.55,2548.6,2548.4,3.92396378]
[1751809694445,4.47375447,2548.6,2548.4,0.196]
[1751809694659,0.55,2548.4,2548.1,4.67521892]
[1751809694995,8.165,2548.3,2548.1,4.1204904]
[1751809695453,12.78770696,2548.3,2548.1,0.196]
[1751809695656,0.55,2548.1,2548.0,0.001]
[1751809696646,0.55,2548.1,2548.0,3.92563801]
[1751809697045,0.55,2548.1,2548.0,0.001]
[1751809697257,0.196,2548.2,2548.0,3.9256218]
[1751809697439,0.55,2548.2,2548.1,3.92449275]
[1751809697649,8.165,2548.3,2548.2,3.92433874]
[1751809698053,8.165,2548.3,2548.2,4.12033874]
[1751809698576,0.55,2548.6,2548.3,3.92418475]
[1751809698873,0.55,2548.4,2548.3,3.92410178]
[1751809699034,0.198,2548.7,2548.3,3.92410178]
[1751809699035,0.002,2548.7,2548.6,3.92372282]
[1751809699232,8.167,2548.7,2548.6,4.67452282]
[1751809699465,8.167,2548.7,2548.6,0.7508]
[1751809699632,8.717,2548.7,2548.5,0.196]
[1751809699834,8.715,2548.6,2548.5,0.196]
[1751809700429,8.715,2548.6,2548.5,4.11987679]
[1751809700638,8.165,2548.6,2548.5,4.11987679]
[1751809701251,0.002,2548.7,2548.5,4.11987679]
[1751809701457,8.165,2548.6,2548.5,4.11987679]
[1751809701831,8.165,2548.6,2548.5,0.196]
[1751809702037,8.715,2548.6,2548.5,0.196]
[1751809702550,8.715,2548.6,2548.5,4.11987679]
[1751809703750,8.165,2548.6,2548.5,4.11987679]
[1751809707682,0.002,2548.7,2548.5,4.11987679]
[1751809707866,0.002,2548.7,2548.6,4.73672282]
[1751809708190,0.55,2548.6,2548.0,0.001]
[1751809708361,0.55,2548.6,2548.2,0.196]
[1751809708362,1.88370716,2548.6,2548.2,0.196]
[1751809708741,5.80744342,2548.6,2548.2,0.196]
[1751809709042,0.55,2548.3,2548.2,3.92433176]
[1751809709243,8.713,2548.3,2548.2,3.92433176]
[1751809709444,8.713,2548.3,2548.0,4.121562]
[1751809709640,8.713,2548.3,2548.2,3.92433874]
[1751809710679,8.713,2548.3,2548.0,4.12151735]
[1751809710860,8.713,2548.3,2548.0,4.12157526]
[1751809711259,8.713,2548.3,2548.1,3.9244927]
[1751809711460,0.55,2548.1,2548.0,0.197]
[1751809711659,0.55,2548.1,2548.0,0.001]
[1751809713699,0.746,2548.1,2548.0,0.001]
[1751809713874,4.67049275,2548.1,2548.0,0.001]
[1751809714078,1.4444,2548.1,2548.0,0.001]
[1751809714266,2.77810716,2548.1,2548.0,0.001]
[1751809714690,16.70259991,2548.1,2548.0,0.001]
[1751809715055,26.89959991,2548.1,2548.0,0.001]
[1751809715856,27.26667353,2548.1,2548.0,0.001]
[1751809717164,17.06967353,2548.1,2548.0,0.001]
[1751809717502,27.26767353,2548.1,2548.0,0.001]
[1751809717804,1.26147362,2548.1,2548.0,0.001]
[1751809717967,10.394,2548.1,2548.0,0.001]
[1751809718372,2.231,2548.1,2548.0,0.001]
[1751809718598,10.394,2548.1,2548.0,0.001]
[1751809718811,10.944,2548.1,2548.0,0.001]
[1751809720710,12.0386,2548.1,2548.0,0.001]
[1751809724702,15.96309275,2548.1,2548.0,0.001]
[1751809725120,16.66149275,2548.1,2548.0,0.001]
[1751809725289,12.737,2548.1,2548.0,0.001]
[1751809725614,16.66149275,2548.1,2548.0,0.001]
[1751809727412,26.66149275,2548.1,2548.0,0.001]
[1751809729525,5.17366299,2547.6,2547.5,0.04451841]
[1751809729724,23.85302929,2547.6,2547.5,0.04451841]
[1751809730330,25.88802929,2547.6,2547.5,0.04451841]
[1751809733109,21.9627663,2547.6,2547.5,0.04451841]
[1751809733309,20.746,2547.6,2547.5,0.04451841]
[1751809733512,24.67126299,2547.6,2547.5,0.04451841]
[1751809735733,10.746,2547.6,2547.5,0.04451841]
[1751809735939,14.67126299,2547.6,2547.5,0.04451841]
[1751809736254,15.36966299,2547.6,2547.5,0.04451841]
[1751809737123,11.4444,2547.6,2547.5,0.04451841]
[1751809737741,11.4444,2547.6,2547.5,0.04551841]
[1751809738239,10.746,2547.6,2547.5,0.04551841]
[1751809739237,14.67126299,2547.6,2547.5,0.04551841]
[1751809739430,24.67126299,2547.6,2547.5,0.04551841]
[1751809739818,20.746,2547.6,2547.5,0.04551841]
[1751809741132,21.11311675,2547.6,2547.5,0.04551841]
[1751809741328,10.91711675,2547.6,2547.5,0.04551841]
[1751809741641,0.6984,2548.2,2547.5,3.97092022]
[1751809741841,0.6984,2548.2,2547.9,3.92476259]
[1751809741842,8.72305842,2548.1,2547.9,3.92476259]
[1751809742045,8.356,2548.1,2547.9,3.92476259]
[1751809742211,0.196,2548.1,2548.0,3.92464678]
[1751809742410,0.002,2548.3,2547.8,0.8101]
[1751809742629,8.16,2548.2,2548.1,3.92435118]
[1751809743122,0.198,2548.3,2548.2,3.92433874]
[1751809743317,0.002,2548.3,2548.2,3.92433874]
[1751809743530,8.162,2548.3,2548.2,3.92433874]
[1751809743731,0.002,2548.3,2548.2,3.92433874]
[1751809744045,8.162,2548.3,2548.2,3.92433874]
[1751809744257,8.162,2548.3,2548.1,0.196]
[1751809744412,8.162,2548.3,2548.1,3.92446493]
[1751809744611,0.55,2548.2,2548.1,3.92446493]
[1751809745013,0.55,2548.2,2548.0,4.12055846]
[1751809745213,8.709,2548.1,2548.0,4.12055846]
[1751809745509,0.55,2548.0,2547.8,0.8101]
[1751809745747,8.159,2547.9,2547.8,4.93100347]
[1751809746320,8.709,2547.9,2547.8,1.0061]
[1751809746535,0.55,2547.8,2547.7,3.92510632]
[1751809748837,0.55,2547.8,2547.6,0.196]
[1751809749040,8.708,2547.7,2547.6,4.12116344]
[1751809749433,8.708,2547.7,2547.5,4.78096133]
[1751809749434,0.55,2547.6,2547.5,4.78096133]
[1751809750047,0.55,2547.6,2547.5,0.04551841]
[1751809750221,0.55,2547.6,2547.5,3.97093548]
[1751809750423,4.47526299,2547.6,2547.5,0.04551841]
[1751809750622,5.34606299,2547.6,2547.5,0.04551841]
[1751809751148,16.41151121,2547.6,2547.5,0.04551841]
[1751809752024,26.60051121,2547.6,2547.5,0.04551841]
[1751809752225,26.59951121,2547.6,2547.5,0.04551841]
[1751809753850,26.89856095,2547.6,2547.5,0.04551841]
[1751809754249,16.41151121,2547.6,2547.5,0.04551841]
[1751809754441,26.60051121,2547.6,2547.5,0.04551841]
[1751809755940,16.60051121,2547.6,2547.5,0.04551841]
[1751809756141,16.23346299,2547.6,2547.5,0.04551841]
[1751809756542,26.23346299,2547.6,2547.5,0.04551841]
[1751809756936,26.60008652,2547.6,2547.5,0.04551841]
[1751809757518,11.4208,2547.6,2547.5,0.04551841]
[1751809758057,25.53506299,2547.6,2547.5,0.04551841]
[1751809758255,0.8708,2547.6,2547.5,0.04551841]
[1751809758554,0.8708,2547.6,2547.5,3.97092189]
[1751809758555,0.196,2547.6,2547.5,3.97092189]
[1751809758766,2.032,2547.8,2547.7,3.92510892]
[1751809758954,10.188,2547.8,2547.7,3.92510892]
[1751809760057,0.196,2548.1,2547.9,3.92476157]
[1751809760253,8.156,2548.0,2547.8,3.92487902]
[1751809760458,8.706,2548.0,2547.9,3.92480081]
[1751809760660,2.032,2548.2,2548.0,4.67534678]
[1751809760876,2.032,2548.2,2548.0,0.7507]
[1751809761159,2.032,2548.2,2548.1,3.92449275]
[1751809761321,10.188,2548.2,2548.1,3.92449275]
[1751809761724,10.738,2548.2,2548.1,3.92449275]
[1751809762137,0.002,2548.3,2548.2,3.92433874]
[1751809762354,8.157,2548.3,2548.2,3.92433874]
[1751809762655,8.157,2548.3,2548.1,4.12040688]
[1751809762957,8.707,2548.3,2548.2,3.92433874]
[1751809763529,8.707,2548.3,2548.1,4.12041405]
[1751809763736,0.002,2548.3,2548.2,5.55461016]
[1751809764057,8.707,2548.3,2548.2,1.82627142]
[1751809764356,8.707,2548.3,2548.2,0.9467]
[1751809764563,8.707,2548.3,2548.2,4.87103874]
[1751809765060,0.55,2548.2,2548.0,0.196]
[1751809765267,0.55,2548.0,2547.5,0.83861841]
[1751809765461,0.55,2547.7,2547.5,0.24151841]
[1751809765757,8.703,2547.6,2547.5,0.04551841]
[1751809765960,12.62826299,2547.6,2547.5,0.04551841]
[1751809766468,8.703,2547.6,2547.5,0.04551841]
[1751809766635,13.46110368,2547.6,2547.5,0.04551841]
[1751809767758,26.19150368,2547.6,2547.5,0.04551841]
[1751809767960,26.55779683,2547.6,2547.5,0.04551841]
[1751809768262,26.19150368,2547.6,2547.5,0.04551841]
[1751809768767,11.38284069,2547.6,2547.5,0.04551841]
[1751809768970,20.735,2547.6,2547.5,0.04551841]
[1751809769144,24.85626299,2547.6,2547.5,0.04551841]
[1751809770560,25.22250359,2547.6,2547.5,0.04551841]
[1751809770747,24.85626299,2547.6,2547.5,0.04551841]
[1751809770949,25.22249869,2547.6,2547.5,0.04551841]
[1751809771278,25.22249931,2547.6,2547.5,0.04551841]
[1751809773486,25.92089931,2547.6,2547.5,0.04551841]
[1751809778764,33.73089931,2547.6,2547.5,1e-08]
[1751809778959,33.9356991,2547.6,2547.5,1e-08]
[1751809780576,33.73089931,2547.6,2547.5,1e-08]
[1751809780791,25.57789931,2547.6,2547.5,1e-08]
[1751809780997,33.72989931,2547.6,2547.5,1e-08]
[1751809783699,33.72689931,2547.6,2547.5,1e-08]
[1751809783872,23.54589931,2547.6,2547.5,1e-08]
[1751809784078,33.72689931,2547.6,2547.5,1e-08]
[1751809785299,25.02489931,2547.6,2547.5,1e-08]
[1751809785499,32.47849931,2547.6,2547.5,1e-08]
[1751809785804,14.66949931,2547.6,2547.5,1e-08]
[1751809785969,25.21949931,2547.6,2547.5,1e-08]
[1751809786166,15.21949931,2547.6,2547.5,1e-08]
[1751809786368,11.29423632,2547.6,2547.5,1e-08]
[1751809786779,15.21918184,2547.6,2547.5,1e-08]
[1751809786965,11.11191885,2547.6,2547.5,1e-08]
[1751809787161,20.928,2547.6,2547.5,1e-08]
[1751809787363,10.196,2547.6,2547.5,1e-08]
[1751809787593,10.377,2547.6,2547.5,1e-08]
[1751809787798,12.776,2547.6,2547.5,1e-08]
[1751809788096,20.927,2547.6,2547.5,1e-08]
[1751809788393,12.226,2547.6,2547.5,1e-08]
[1751809788596,20.927,2547.6,2547.5,1e-08]
[1751809788766,24.85226299,2547.6,2547.5,1e-08]
[1751809789378,20.926,2547.6,2547.5,1e-08]
[1751809790106,0.196,2547.9,2547.7,3.92505971]
[1751809790293,8.15,2547.8,2547.5,4.94643895]
[1751809790491,8.15,2547.8,2547.5,5.83364386]
[1751809790797,0.55,2547.7,2547.5,5.83364386]
[1751809791000,8.7,2547.6,2547.5,1.02110001]
[1751809791500,8.896,2547.6,2547.5,0.82510001]
[1751809791805,0.002,2548.0,2547.9,0.7988]
[1751809791991,18.152,2548.0,2547.9,0.7988]
[1751809792489,8.151,2548.0,2547.9,4.72360081]
[1751809792871,8.151,2548.0,2547.9,0.7988]
[1751809793070,8.701,2548.0,2547.9,0.7988]
[1751809794173,12.62564678,2548.0,2547.9,0.7988]
[1751809794368,0.55,2547.8,2547.6,4.72405927]
[1751809794596,8.699,2547.7,2547.6,5.20288618]
[1751809795211,8.699,2547.7,2547.6,1.27762691]
[1751809795394,8.699,2547.7,2547.6,0.7988]
[1751809796408,8.699,2547.7,2547.6,4.72406299]
[1751809796577,0.55,2547.7,2547.6,4.72406299]
[1751809796770,0.196,2547.9,2547.8,3.92495486]
[1751809797004,0.002,2548.0,2547.9,4.72360081]
[1751809797180,8.15,2548.0,2547.9,4.72360081]
[1751809797505,8.15,2548.0,2547.9,5.58847081]
[1751809797702,8.15,2548.0,2547.9,5.78447081]
[1751809798386,8.7,2548.0,2547.9,5.58847081]
[1751809799403,8.7,2548.0,2547.9,4.72360081]
[1751809799708,8.7,2548.0,2547.9,4.91960081]
[1751809799709,0.002,2548.0,2547.9,4.91960081]
[1751809799870,0.002,2548.0,2547.9,4.76284881]
[1751809800201,8.149,2548.0,2547.9,4.72360081]
[1751809800385,8.149,2548.0,2547.9,5.58845537]
[1751809803886,0.002,2548.0,2547.9,5.62770337]
[1751809804090,8.148,2548.0,2547.9,5.58845537]
[1751809804827,0.002,2548.0,2547.9,5.62770337]
[1751809805113,0.002,2548.3,2548.2,4.72313874]
[1751809805304,0.002,2548.3,2548.2,15.62714283]